fUST/lending_fUST_20251207
["ID","MTS","AMOUNT","RATE_DAILY","PERIOD"]
[396552821,1765048239119,-397.3971243,7.82e-05,2]
[396552823,1765048239129,-500.0,7.852e-05,2]
[396552825,1765048239138,-151.0,7.852e-05,2]
[396552827,1765048239147,-151.0,7.852e-05,2]
[396552829,1765048239158,-531.0,7.852e-05,2]
[396552831,1765048239168,-151.0,7.853e-05,2]
[396552833,1765048239177,-151.0,7.853e-05,2]
[396552835,1765048239187,-500.0,7.853e-05,2]
[396552837,1765048239197,-151.0,7.93e-05,2]
[396552839,1765048239206,-151.0,7.93e-05,2]
[396552841,1765048239215,-151.0,7.93e-05,2]
[396552843,1765048239225,-151.0,7.93e-05,2]
[396552845,1765048239234,-151.0,7.93e-05,2]
[396552847,1765048239244,-151.0,7.93e-05,2]
[396552849,1765048239253,-500.0,7.93e-05,2]
[396552851,1765048239262,-151.0,7.93e-05,2]
[396552853,1765048239271,-151.0,7.93e-05,2]
[396552855,1765048239281,-151.35745905,7.93e-05,2]
[396552857,1765048239290,-151.0,7.93e-05,2]
[396552859,1765048239301,-152.00802856,7.93e-05,2]
[396552861,1765048239311,-500.0,7.93e-05,2]
[396552863,1765048239320,-151.0,7.93e-05,2]
[396552865,1765048239330,-1984.64881965,7.988e-05,2]
[396552867,1765048239340,-500.0,7.989e-05,2]
[396552869,1765048239349,-151.0,7.989e-05,2]
[396552871,1765048239358,-151.0,7.989e-05,2]
[396552873,1765048239367,-531.0,7.989e-05,2]
[396552875,1765048239376,-220.07835471,7.99e-05,2]
[396552877,1765048239385,-151.0,7.99e-05,2]
[396552879,1765048239394,-502.20646407,7.99e-05,2]
[396552881,1765048239403,-270.74,8e-05,2]
[396552883,1765048239413,-200.63,8e-05,2]
[396552885,1765048239425,-200.63,8e-05,2]
[396552887,1765048239434,-200.63,8e-05,2]
[396552889,1765048239443,-200.63,8e-05,2]
[396552891,1765048239454,-200.63,8e-05,2]
[396552893,1765048239464,-200.63,8e-05,2]
[396552895,1765048239474,-200.65,8e-05,2]
[396552897,1765048239483,-230.9,8e-05,2]
[396552899,1765048239493,-151.0,8.067e-05,2]
[396552901,1765048239502,-151.0,8.067e-05,2]
[396552903,1765048239511,-151.0,8.067e-05,2]
[396552905,1765048239520,-151.0,8.067e-05,2]
[396552907,1765048239529,-151.0,8.067e-05,2]
[396552909,1765048239539,-502.34732141,8.067e-05,2]
[396552911,1765048239548,-151.0,8.067e-05,2]
[396552913,1765048239558,-151.0,8.067e-05,2]
[396552915,1765048239567,-151.0,8.067e-05,2]
[396552917,1765048239577,-501.54917972,8.067e-05,2]
[396552919,1765048239587,-151.0,8.067e-05,2]
[396552921,1765048239597,-179.85,8.085e-05,2]
[396552923,1765048239607,-230.9,8.1e-05,2]
[396552925,1765048239616,-365.42268564,8.108e-05,2]
[396552927,1765048239626,-235.28574535,8.108e-05,2]
[396552929,1765048239635,-358.97,8.108e-05,2]
[396552932,1765048239644,-358.97,8.116e-05,2]
[396552933,1765048239655,-500.0,8.126e-05,2]
[396552935,1765048239665,-151.0,8.126e-05,2]
[396552937,1765048239674,-151.0,8.126e-05,2]
[396552940,1765048239684,-531.0,8.126e-05,2]
[396552942,1765048239694,-151.0,8.127e-05,2]
[396552944,1765048239704,-541.64377404,8.136e-05,2]
[396552946,1765048239714,-198.0,8.204e-05,2]
[396552948,1765048239727,-152.03934217,8.204e-05,2]
[396552950,1765048239739,-151.80050536,8.204e-05,2]
[396552952,1765048239748,-151.0,8.204e-05,2]
[396552954,1765048239757,-151.0,8.204e-05,2]
[396552956,1765048239768,-151.0,8.204e-05,2]
[396552958,1765048239777,-210.48089792,8.204e-05,2]
[396552960,1765048239787,-152.3679434,8.204e-05,2]
[396552962,1765048239798,-151.0,8.204e-05,2]
[396552964,1765048239807,-169.730852,8.219e-05,2]
[396552966,1765048239816,-3682.836384,8.219e-05,2]
[396552968,1765048239825,-500.0,8.219e-05,2]
[396552970,1765048239834,-500.0,8.219e-05,2]
[396552972,1765048239844,-500.0,8.219e-05,2]
[396552974,1765048239854,-500.0,8.219e-05,2]
[396552976,1765048239864,-500.0,8.219e-05,2]
[396552978,1765048239873,-500.0,8.219e-05,2]
[396552980,1765048239883,-500.0,8.219e-05,2]
[396552982,1765048239893,-232.3479746,8.219e-05,2]
[396552984,1765048239902,-500.0,8.219e-05,2]
[396552986,1765048239911,-500.0,8.219e-05,2]
[396552988,1765048239920,-921.99,8.219e-05,2]
[396552990,1765048239929,-500.0,8.219e-05,2]
[396552992,1765048239938,-937.81,8.219e-05,2]
[396552994,1765048239947,-692.32,8.219e-05,2]
[396552996,1765048239956,-527.29024902,8.219e-05,2]
[396552998,1765048239965,-500.0,8.219e-05,2]
[396553000,1765048239974,-500.0,8.219e-05,2]
[396553002,1765048239984,-500.0,8.219e-05,2]
[396553003,1765048239992,-500.0,8.219e-05,2]
[396553005,1765048240001,-500.0,8.219e-05,2]
[396553007,1765048240010,-500.0,8.219e-05,2]
[396553009,1765048240020,-500.0,8.219e-05,2]
[396553011,1765048240029,-500.0,8.219e-05,2]
[396553013,1765048240038,-500.0,8.219e-05,2]
[396553015,1765048240047,-744.34,8.219e-05,2]
[396553017,1765048240056,-649.52,8.219e-05,2]
[396553019,1765048240065,-500.0,8.219e-05,2]
[396553021,1765048240074,-500.0,8.219e-05,2]
[396553023,1765048240083,-500.0,8.219e-05,2]
[396553025,1765048240093,-500.0,8.219e-05,2]
[396553027,1765048240103,-1658.98,8.219e-05,2]
[396553029,1765048240112,-588.17,8.219e-05,2]
[396553031,1765048240121,-500.0,8.219e-05,2]
[396553033,1765048240130,-500.0,8.219e-05,2]
[396553035,1765048240140,-217.70201744,8.219e-05,2]
[396553037,1765048240149,-500.0,8.219e-05,2]
[396553039,1765048240158,-500.0,8.219e-05,2]
[396553041,1765048240168,-500.0,8.219e-05,2]
[396553043,1765048240177,-500.0,8.219e-05,2]
[396553045,1765048240187,-500.0,8.219e-05,2]
[396553047,1765048240197,-821.85,8.219e-05,2]
[396553049,1765048240207,-500.0,8.219e-05,2]
[396553051,1765048240216,-500.0,8.219e-05,2]
[396553053,1765048240226,-500.0,8.219e-05,2]
[396553055,1765048240235,-500.0,8.219e-05,2]
[396553057,1765048240244,-500.0,8.219e-05,2]
[396553059,1765048240253,-500.0,8.219e-05,2]
[396553061,1765048240262,-651.51,8.219e-05,2]
[396553063,1765048240273,-500.0,8.219e-05,2]
[396553065,1765048240282,-500.0,8.219e-05,2]
[396553067,1765048240291,-500.0,8.219e-05,2]
[396553069,1765048240300,-500.0,8.219e-05,2]
[396553071,1765048240309,-500.0,8.219e-05,2]
[396553073,1765048240318,-500.0,8.219e-05,2]
[396553075,1765048240328,-500.0,8.219e-05,2]
[396553077,1765048240337,-500.0,8.219e-05,2]
[396553079,1765048240346,-915.53,8.219e-05,2]
[396553081,1765048240356,-500.0,8.219e-05,2]
[396553082,1765048240365,-500.0,8.219e-05,2]
[396553084,1765048240374,-562.56,8.219e-05,2]
[396553086,1765048240383,-500.0,8.219e-05,2]
[396553088,1765048240392,-500.0,8.219e-05,2]
[396553090,1765048240401,-500.0,8.219e-05,2]
[396553092,1765048240410,-500.0,8.219e-05,2]
[396553094,1765048240419,-500.0,8.219e-05,2]
[396553096,1765048240428,-500.0,8.219e-05,2]
[396553098,1765048240438,-607.73,8.219e-05,2]
[396553100,1765048240447,-181.44395826,8.219e-05,2]
[396553102,1765048240456,-500.0,8.219e-05,2]
[396553104,1765048240466,-500.0,8.219e-05,2]
[396553106,1765048240475,-500.0,8.219e-05,2]
[396553108,1765048240484,-539.47,8.219e-05,2]
[396553110,1765048240493,-500.0,8.219e-05,2]
[396553112,1765048240503,-500.0,8.219e-05,2]
[396553114,1765048240512,-500.0,8.219e-05,2]
[396553116,1765048240522,-500.0,8.219e-05,2]
[396553118,1765048240532,-500.0,8.219e-05,2]
[396553120,1765048240542,-500.0,8.219e-05,2]
[396553122,1765048240551,-500.0,8.219e-05,2]
[396553124,1765048240561,-500.0,8.219e-05,2]
[396553126,1765048240570,-557.48,8.219e-05,2]
[396553128,1765048240579,-500.0,8.219e-05,2]
[396553130,1765048240588,-500.0,8.219e-05,2]
[396553132,1765048240598,-500.0,8.219e-05,2]
[396553134,1765048240607,-500.0,8.219e-05,2]
[396553136,1765048240616,-1182.08,8.219e-05,2]
[396553138,1765048240626,-500.0,8.219e-05,2]
[396553140,1765048240635,-500.0,8.219e-05,2]
[396553142,1765048240644,-611.67533338,8.219e-05,2]
[396553144,1765048240653,-500.0,8.219e-05,2]
[396553146,1765048240662,-500.0,8.219e-05,2]
[396553148,1765048240671,-500.0,8.219e-05,2]
[396553150,1765048240682,-500.0,8.219e-05,2]
[396553152,1765048240690,-500.0,8.219e-05,2]
[396553154,1765048240700,-500.0,8.219e-05,2]
[396553156,1765048240710,-500.0,8.219e-05,2]
[396553158,1765048240719,-500.0,8.219e-05,2]
[396553160,1765048240731,-500.0,8.219e-05,2]
[396553162,1765048240741,-500.0,8.219e-05,2]
[396553164,1765048240750,-500.0,8.219e-05,2]
[396553166,1765048240760,-500.0,8.219e-05,2]
[396553168,1765048240771,-500.0,8.219e-05,2]
[396553170,1765048240780,-582.99,8.219e-05,2]
[396553172,1765048240789,-2294.57,8.219e-05,2]
[396553174,1765048240799,-500.0,8.219e-05,2]
[396553176,1765048240808,-500.0,8.219e-05,2]
[396553178,1765048240817,-575.64,8.219e-05,2]
[396553180,1765048240827,-535.05,8.219e-05,2]
[396553182,1765048240836,-1039.73,8.219e-05,2]
[396553184,1765048240847,-500.0,8.219e-05,2]
[396553186,1765048240856,-546.57,8.219e-05,2]
[396553188,1765048240865,-500.0,8.219e-05,2]
[396553190,1765048240874,-1518.46,8.219e-05,2]
[396553192,1765048240883,-500.0,8.219e-05,2]
[396553194,1765048240892,-500.0,8.219e-05,2]
[396553196,1765048240901,-500.0,8.219e-05,2]
[396553198,1765048240910,-500.0,8.219e-05,2]
[396553200,1765048240920,-500.0,8.219e-05,2]
[396553202,1765048240929,-500.0,8.219e-05,2]
[396553204,1765048240939,-500.0,8.219e-05,2]
[396553207,1765048240948,-500.0,8.219e-05,2]
[396553209,1765048240958,-1077.63,8.219e-05,2]
[396553211,1765048240967,-658.67,8.219e-05,2]
[396553213,1765048240976,-597.58,8.219e-05,2]
[396553215,1765048240986,-500.0,8.219e-05,2]
[396553217,1765048240995,-1558.52,8.219e-05,2]
[396553219,1765048241004,-500.0,8.219e-05,2]
[396553221,1765048241013,-500.0,8.219e-05,2]
[396553222,1765048241022,-500.0,8.219e-05,2]
[396553225,1765048241031,-500.0,8.219e-05,2]
[396553226,1765048241041,-500.0,8.219e-05,2]
[396553228,1765048241050,-1137.5,8.219e-05,2]
[396553230,1765048241059,-587.33,8.219e-05,2]
[396553232,1765048241068,-500.0,8.219e-05,2]
[396553234,1765048241077,-500.0,8.219e-05,2]
[396553236,1765048241086,-793.4,8.219e-05,2]
[396553238,1765048241095,-500.0,8.219e-05,2]
[396553240,1765048241104,-500.0,8.219e-05,2]
[396553242,1765048241113,-620.02,8.219e-05,2]
[396553244,1765048241123,-500.0,8.219e-05,2]
[396553246,1765048241131,-821.68,8.219e-05,2]
[396553248,1765048241141,-519.17,8.219e-05,2]
[396553250,1765048241150,-500.0,8.219e-05,2]
[396553252,1765048241159,-500.0,8.219e-05,2]
[396553254,1765048241168,-500.0,8.219e-05,2]
[396553256,1765048241179,-1086.11,8.219e-05,2]
[396553258,1765048241188,-599.34,8.219e-05,2]
[396553260,1765048241197,-2877.22,8.219e-05,2]
[396553262,1765048241206,-500.0,8.219e-05,2]
[396553264,1765048241217,-500.0,8.219e-05,2]
[396553266,1765048241227,-500.0,8.219e-05,2]
[396553268,1765048241236,-500.0,8.219e-05,2]
[396553270,1765048241245,-685.1,8.219e-05,2]
[396553272,1765048241253,-500.0,8.219e-05,2]
[396553274,1765048241263,-1000.0,8.219e-05,2]
[396553276,1765048241272,-508.57,8.219e-05,2]
[396553278,1765048241281,-500.0,8.219e-05,2]
[396553280,1765048241290,-500.0,8.219e-05,2]
[396553282,1765048241299,-361.30788324,8.219e-05,2]
[396553285,1765048241314,-791.65,8.219e-05,2]
[396553287,1765048241323,-2263.12,8.219e-05,2]
[396553289,1765048241332,-500.0,8.219e-05,2]
[396553291,1765048241341,-1298.73,8.219e-05,2]
[396553293,1765048241351,-500.0,8.219e-05,2]
[396553295,1765048241360,-616.7,8.219e-05,2]
[396553297,1765048241370,-2062.92,8.219e-05,2]
[396553299,1765048241379,-500.0,8.219e-05,2]
[396553301,1765048241388,-500.0,8.219e-05,2]
[396553303,1765048241399,-500.0,8.219e-05,2]
[396553305,1765048241408,-500.0,8.219e-05,2]
[396553307,1765048241419,-500.0,8.219e-05,2]
[396553309,1765048241428,-500.0,8.219e-05,2]
[396553311,1765048241438,-500.0,8.219e-05,2]
[396553313,1765048241447,-691.46,8.219e-05,2]
[396553315,1765048241456,-500.0,8.219e-05,2]
[396553317,1765048241465,-500.0,8.219e-05,2]
[396553319,1765048241475,-574.74,8.219e-05,2]
[396553321,1765048241484,-500.0,8.219e-05,2]
[396553323,1765048241494,-500.0,8.219e-05,2]
[396553325,1765048241503,-500.0,8.219e-05,2]
[396553327,1765048241512,-500.0,8.219e-05,2]
[396553329,1765048241522,-500.0,8.219e-05,2]
[396553331,1765048241531,-500.0,8.219e-05,2]
[396553333,1765048241541,-1104.34,8.219e-05,2]
[396553335,1765048241551,-720.26,8.219e-05,2]
[396553337,1765048241560,-500.0,8.219e-05,2]
[396553339,1765048241569,-583.98,8.219e-05,2]
[396553341,1765048241578,-500.0,8.219e-05,2]
[396553343,1765048241587,-500.0,8.219e-05,2]
[396553345,1765048241596,-500.0,8.219e-05,2]
[396553347,1765048241605,-500.0,8.219e-05,2]
[396553349,1765048241614,-500.0,8.219e-05,2]
[396553351,1765048241623,-500.0,8.219e-05,2]
[396553353,1765048241632,-500.0,8.219e-05,2]
[396553355,1765048241641,-1215.33,8.219e-05,2]
[396553357,1765048241650,-500.0,8.219e-05,2]
[396553359,1765048241660,-500.0,8.219e-05,2]
[396553361,1765048241669,-1901.57,8.219e-05,2]
[396553363,1765048241678,-500.0,8.219e-05,2]
[396553365,1765048241687,-500.0,8.219e-05,2]
[396553367,1765048241696,-500.0,8.219e-05,2]
[396553369,1765048241705,-860.02,8.219e-05,2]
[396553371,1765048241715,-500.0,8.219e-05,2]
[396553373,1765048241726,-500.0,8.219e-05,2]
[396553375,1765048241736,-356.75685357,8.219e-05,2]
[396553377,1765048241745,-606.16899906,8.219e-05,2]
[396553379,1765048241754,-500.0,8.219e-05,2]
[396553381,1765048241764,-500.0,8.219e-05,2]
[396553383,1765048241773,-500.0,8.219e-05,2]
[396553385,1765048241782,-549.57,8.219e-05,2]
[396553387,1765048241791,-500.0,8.219e-05,2]
[396553389,1765048241800,-500.0,8.219e-05,2]
[396553391,1765048241811,-500.0,8.219e-05,2]
[396553393,1765048241819,-500.0,8.219e-05,2]
[396553395,1765048241829,-500.0,8.219e-05,2]
[396553397,1765048241839,-500.0,8.219e-05,2]
[396553399,1765048241848,-620.66,8.219e-05,2]
[396553401,1765048241857,-500.0,8.219e-05,2]
[396553403,1765048241866,-500.0,8.219e-05,2]
[396553405,1765048241876,-1863.52,8.219e-05,2]
[396553407,1765048241885,-1584.57,8.219e-05,2]
[396553409,1765048241894,-500.0,8.219e-05,2]
[396553411,1765048241904,-500.0,8.219e-05,2]
[396553413,1765048241914,-500.0,8.219e-05,2]
[396553415,1765048241924,-500.0,8.219e-05,2]
[396553417,1765048241933,-151.0,8.219e-05,2]
[396553419,1765048241943,-500.0,8.219e-05,2]
[396553421,1765048241952,-151.0,8.219e-05,2]
[396553423,1765048241962,-254.66201316,8.219e-05,2]
[396553425,1765048241971,-500.0,8.219e-05,2]
[396553427,1765048241980,-500.0,8.219e-05,2]
[396553429,1765048241989,-500.0,8.219e-05,2]
[396553431,1765048241999,-151.0,8.219e-05,2]
[396553433,1765048242008,-500.0,8.219e-05,2]
[396553435,1765048242017,-151.0,8.219e-05,2]
[396553437,1765048242026,-500.0,8.219e-05,2]
[396553439,1765048242035,-151.0,8.219e-05,2]
[396553441,1765048242044,-151.0,8.219e-05,2]
[396553443,1765048242058,-500.0,8.219e-05,2]
[396553444,1765048242067,-211.251504,8.219e-05,2]
[396553446,1765048242076,-500.0,8.219e-05,2]
[396553448,1765048242086,-1209.13,8.219e-05,2]
[396553450,1765048242096,-935.09,8.219e-05,2]
[396553452,1765048242105,-500.0,8.219e-05,2]
[396553454,1765048242115,-500.0,8.219e-05,2]
[396553456,1765048242124,-884.36,8.219e-05,2]
[396553458,1765048242133,-500.0,8.219e-05,2]
[396553460,1765048242142,-810.25,8.219e-05,2]
[396553462,1765048242152,-500.0,8.219e-05,2]
[396553464,1765048242162,-644.91,8.219e-05,2]
[396553466,1765048242172,-500.0,8.219e-05,2]
[396553468,1765048242181,-1231.83,8.219e-05,2]
[396553470,1765048242191,-500.0,8.219e-05,2]
[396553471,1765048242200,-2573.15,8.219e-05,2]
[396553472,1765048242210,-500.0,8.219e-05,2]
[396553473,1765048242220,-500.0,8.219e-05,2]
[396553474,1765048242230,-500.0,8.219e-05,2]
[396553475,1765048242239,-2440.33,8.219e-05,2]
[396553476,1765048242249,-500.0,8.219e-05,2]
[396553477,1765048242259,-500.0,8.219e-05,2]
[396553478,1765048242268,-1075.5,8.219e-05,2]
[396553479,1765048242278,-635.44,8.219e-05,2]
[396553480,1765048242287,-500.0,8.219e-05,2]
[396553481,1765048242297,-500.0,8.219e-05,2]
[396553482,1765048242306,-500.0,8.219e-05,2]
[396553483,1765048242315,-500.0,8.219e-05,2]
[396553484,1765048242325,-500.0,8.219e-05,2]
[396553485,1765048242335,-309.19112593,8.219e-05,2]
[396553486,1765048242344,-884.05,8.219e-05,2]
[396553487,1765048242353,-500.0,8.219e-05,2]
[396553488,1765048242363,-500.0,8.219e-05,2]
[396553489,1765048242372,-500.0,8.219e-05,2]
[396553490,1765048242382,-1949.28,8.219e-05,2]
[396553491,1765048242391,-500.0,8.219e-05,2]
[396553492,1765048242400,-500.0,8.219e-05,2]
[396553493,1765048242410,-1394.86,8.219e-05,2]
[396553494,1765048242420,-500.0,8.219e-05,2]
[396553495,1765048242430,-500.0,8.219e-05,2]
[396553497,1765048242444,-500.0,8.219e-05,2]
[396553499,1765048242454,-1007.6,8.219e-05,2]
[396553501,1765048242464,-644.71,8.219e-05,2]
[396553503,1765048242474,-618.62,8.219e-05,2]
[396553506,1765048242485,-2922.74,8.219e-05,2]
[396553507,1765048242494,-1267.16,8.219e-05,2]
[396553509,1765048242503,-500.0,8.219e-05,2]
[396553511,1765048242512,-500.0,8.219e-05,2]
[396553513,1765048242522,-500.0,8.219e-05,2]
[396553515,1765048242531,-500.0,8.219e-05,2]
[396553517,1765048242540,-500.0,8.219e-05,2]
[396553519,1765048242549,-455.58387473,8.219e-05,2]
[396553521,1765048242559,-500.0,8.219e-05,2]
[396553523,1765048242568,-500.0,8.219e-05,2]
[396553525,1765048242577,-500.0,8.219e-05,2]
[396553527,1765048242587,-500.0,8.219e-05,2]
[396553529,1765048242596,-1270.31,8.219e-05,2]
[396553531,1765048242605,-500.0,8.219e-05,2]
[396553533,1765048242614,-500.0,8.219e-05,2]
[396553535,1765048242624,-500.0,8.219e-05,2]
[396553537,1765048242633,-500.0,8.219e-05,2]
[396553539,1765048242643,-500.0,8.219e-05,2]
[396553541,1765048242653,-921.09,8.219e-05,2]
[396553543,1765048242662,-500.0,8.219e-05,2]
[396553545,1765048242672,-500.0,8.219e-05,2]
[396553547,1765048242681,-500.0,8.219e-05,2]
[396553549,1765048242691,-634.52,8.219e-05,2]
[396553551,1765048242701,-500.0,8.219e-05,2]
[396553553,1765048242710,-500.0,8.219e-05,2]
[396553555,1765048242719,-500.0,8.219e-05,2]
[396553557,1765048242731,-500.0,8.219e-05,2]
[396553559,1765048242740,-500.0,8.219e-05,2]
[396553561,1765048242749,-500.0,8.219e-05,2]
[396553563,1765048242759,-500.0,8.219e-05,2]
[396553565,1765048242768,-500.0,8.219e-05,2]
[396553567,1765048242778,-500.0,8.219e-05,2]
[396553569,1765048242787,-500.0,8.219e-05,2]
[396553571,1765048242796,-500.0,8.219e-05,2]
[396553573,1765048242806,-500.0,8.219e-05,2]
[396553575,1765048242815,-500.0,8.219e-05,2]
[396553577,1765048242824,-500.0,8.219e-05,2]
[396553579,1765048242834,-500.0,8.219e-05,2]
[396553581,1765048242843,-500.0,8.219e-05,2]
[396553583,1765048242852,-554.93,8.219e-05,2]
[396553585,1765048242861,-560.39755657,8.219e-05,2]
[396553587,1765048242870,-500.0,8.219e-05,2]
[396553589,1765048242880,-500.0,8.219e-05,2]
[396553591,1765048242892,-500.0,8.219e-05,2]
[396553593,1765048242902,-500.0,8.219e-05,2]
[396553595,1765048242911,-500.0,8.219e-05,2]
[396553597,1765048242920,-500.0,8.219e-05,2]
[396553599,1765048242930,-1288.56,8.219e-05,2]
[396553600,1765048242939,-1272.84,8.219e-05,2]
[396553602,1765048242948,-500.0,8.219e-05,2]
[396553604,1765048242957,-180.00595885,8.219e-05,2]
[396553606,1765048242966,-500.0,8.219e-05,2]
[396553608,1765048242975,-703.92,8.219e-05,2]
[396553611,1765048242985,-500.0,8.219e-05,2]
[396553613,1765048242995,-511.3,8.219e-05,2]
[396553616,1765048243005,-692.62,8.219e-05,2]
[396553618,1765048243018,-1293.68,8.219e-05,2]
[396553621,1765048243028,-500.0,8.219e-05,2]
[396553623,1765048243037,-500.42,8.219e-05,2]
[396553625,1765048243046,-500.0,8.219e-05,2]
[396553655,1765048243266,-500.0,8.219e-05,2]
[396553657,1765048243276,-500.0,8.219e-05,2]
[396553659,1765048243285,-945.48,8.219e-05,2]
[396553661,1765048243294,-500.0,8.219e-05,2]
[396553663,1765048243304,-500.0,8.219e-05,2]
[396553665,1765048243313,-629.81,8.219e-05,2]
[396553667,1765048243322,-500.0,8.219e-05,2]
[396553669,1765048243337,-500.0,8.219e-05,2]
[396553671,1765048243353,-500.0,8.219e-05,2]
[396553673,1765048243362,-500.0,8.219e-05,2]
[396553675,1765048243371,-500.0,8.219e-05,2]
[396553677,1765048243381,-500.0,8.219e-05,2]
[396553679,1765048243390,-1028.92,8.219e-05,2]
[396553680,1765048243399,-500.0,8.219e-05,2]
[396553682,1765048243409,-500.0,8.219e-05,2]
[396553684,1765048243418,-763.43,8.219e-05,2]
[396553686,1765048243427,-500.0,8.219e-05,2]
[396553688,1765048243436,-500.0,8.219e-05,2]
[396553690,1765048243446,-1646.81,8.219e-05,2]
[396553692,1765048243456,-853.63,8.219e-05,2]
[396553694,1765048243465,-500.0,8.219e-05,2]
[396553696,1765048243475,-500.0,8.219e-05,2]
[396553698,1765048243484,-500.0,8.219e-05,2]
[396553700,1765048243494,-500.0,8.219e-05,2]
[396553702,1765048243503,-500.0,8.219e-05,2]
[396553704,1765048243513,-500.0,8.219e-05,2]
[396553706,1765048243522,-500.0,8.219e-05,2]
[396553708,1765048243531,-223.32684965,8.219e-05,2]
[396553710,1765048243541,-207.82155916,8.219e-05,2]
[396553712,1765048243550,-5283.26,8.219e-05,2]
[396553714,1765048243559,-500.0,8.219e-05,2]
[396553716,1765048243569,-500.0,8.219e-05,2]
[396553718,1765048243578,-500.0,8.219e-05,2]
[396553720,1765048243587,-500.0,8.219e-05,2]
[396553722,1765048243596,-952.06,8.219e-05,2]
[396553724,1765048243606,-500.0,8.219e-05,2]
[396553726,1765048243615,-500.0,8.219e-05,2]
[396553728,1765048243624,-1788.63,8.219e-05,2]
[396553730,1765048243633,-500.0,8.219e-05,2]
[396553732,1765048243642,-500.0,8.219e-05,2]
[396553734,1765048243651,-500.0,8.219e-05,2]
[396553736,1765048243660,-500.0,8.219e-05,2]
[396553738,1765048243669,-500.0,8.219e-05,2]
[396553740,1765048243679,-500.0,8.219e-05,2]
[396553742,1765048243688,-500.0,8.219e-05,2]
[396553744,1765048243699,-500.0,8.219e-05,2]
[396553746,1765048243709,-500.0,8.219e-05,2]
[396553748,1765048243719,-500.0,8.219e-05,2]
[396553750,1765048243736,-500.0,8.219e-05,2]
[396553752,1765048243746,-875.2,8.219e-05,2]
[396553755,1765048243755,-500.0,8.219e-05,2]
[396553756,1765048243764,-2834.46,8.219e-05,2]
[396553758,1765048243775,-500.0,8.219e-05,2]
[396553760,1765048243785,-893.95,8.219e-05,2]
[396553762,1765048243794,-776.49,8.219e-05,2]
[396553764,1765048243804,-500.0,8.219e-05,2]
[396553766,1765048243815,-500.0,8.219e-05,2]
[396553769,1765048243825,-500.0,8.219e-05,2]
[396553771,1765048243835,-500.0,8.219e-05,2]
[396553773,1765048243844,-500.0,8.219e-05,2]
[396553776,1765048243853,-500.0,8.219e-05,2]
[396553778,1765048243862,-500.0,8.219e-05,2]
[396553781,1765048243872,-500.0,8.219e-05,2]
[396553783,1765048243882,-500.0,8.219e-05,2]
[396553784,1765048243891,-500.0,8.219e-05,2]
[396553786,1765048243901,-748.04,8.219e-05,2]
[396553788,1765048243910,-500.0,8.219e-05,2]
[396553790,1765048243919,-500.0,8.219e-05,2]
[396553792,1765048243928,-510.45827881,8.219e-05,2]
[396553794,1765048243937,-506.93,8.219e-05,2]
[396553796,1765048243946,-863.44,8.219e-05,2]
[396553798,1765048243956,-500.0,8.219e-05,2]
[396553800,1765048243965,-1391.98,8.219e-05,2]
[396553802,1765048243975,-500.0,8.219e-05,2]
[396553804,1765048243985,-500.0,8.219e-05,2]
[396553806,1765048243994,-262.78470199,8.219e-05,2]
[396553808,1765048244004,-500.0,8.219e-05,2]
[396553810,1765048244014,-500.0,8.219e-05,2]
[396553812,1765048244023,-17248.56,8.219e-05,2]
[396553814,1765048244032,-500.0,8.219e-05,2]
[396553816,1765048244041,-583.78,8.219e-05,2]
[396553818,1765048244051,-500.0,8.219e-05,2]
[396553820,1765048244060,-1531.52,8.219e-05,2]
[396553822,1765048244070,-730.78,8.219e-05,2]
[396553824,1765048244080,-500.0,8.219e-05,2]